bitfinex/quotes_ETHUSD_20250724
["timestamp","ask_amount","ask_price","bid_price","bid_amount"]
[1753315501200,7.96567209,3622.7,3622.6,0.001]
[1753315501399,11.40837209,3622.7,3622.6,0.001]
[1753315502887,3.7843,3622.7,3622.6,0.001]
[1753315503088,7.42,3622.7,3622.6,0.001]
[1753315503402,10.18037209,3622.7,3622.6,0.001]
[1753315503904,7.418,3622.7,3622.6,0.001]
[1753315504107,10.17837209,3622.7,3622.6,0.001]
[1753315504499,5.76037209,3622.7,3622.6,0.001]
[1753315504705,10.62107209,3622.7,3622.6,0.001]
[1753315505105,5.76037209,3622.7,3622.6,0.001]
[1753315505306,7.417,3622.7,3622.6,0.001]
[1753315506128,10.17737209,3622.7,3622.6,0.001]
[1753315506687,7.417,3622.7,3622.6,0.001]
[1753315507010,7.415,3622.7,3622.6,0.551]
[1753315507554,7.411,3622.7,3622.6,0.551]
[1753315508618,4.409,3622.7,3622.6,0.551]
[1753315508943,4.409,3622.7,3622.6,1.0179]
[1753315509354,4.409,3622.7,3622.6,0.551]
[1753315509512,3.0,3622.9,3622.6,0.551]
[1753315509711,4.406,3622.8,3622.6,3.31143697]
[1753315509930,3.0,3623.1,3622.6,0.551]
[1753315510158,0.002,3623.2,3623.1,0.55]
[1753315510459,7.411,3623.2,3623.1,0.55]
[1753315510813,0.002,3623.2,3623.1,0.55]
[1753315511156,4.41,3623.2,3623.1,3.31006734]
[1753315512285,4.41,3623.2,3623.1,0.55]
[1753315512957,4.41,3623.2,3623.1,3.31006734]
[1753315513353,0.002,3623.2,3623.1,3.31006734]
[1753315513872,4.404,3623.2,3623.1,3.76266734]
[1753315516287,4.404,3623.2,3623.1,1.0026]
[1753315516587,4.404,3623.2,3623.1,3.31006734]
[1753315517845,0.002,3623.2,3623.1,3.31006734]
[1753315518077,0.002,3623.2,3623.1,4.55916734]
[1753315518251,0.002,3623.2,3623.1,4.58676801]
[1753315522598,0.002,3623.2,3623.1,3.76266734]
[1753315523965,0.002,3623.2,3623.1,3.79026801]
[1753315524170,0.002,3623.2,3623.1,3.76266734]
[1753315524378,1.266,3623.2,3623.1,0.55]
[1753315526018,1.266,3623.2,3623.1,3.31006734]
[1753315526164,0.002,3623.2,3623.1,3.31006734]
[1753315529320,0.002,3623.2,3623.1,3.31106734]
[1753315529819,0.002,3623.2,3623.1,0.551]
[1753315530323,0.4346,3623.2,3623.1,0.551]
[1753315531589,6.22218743,3623.2,3623.1,0.001]
[1753315531785,7.02279116,3623.2,3623.1,0.001]
[1753315536144,7.61562034,3623.2,3623.1,0.001]
[1753315536544,6.52967209,3622.7,3622.6,0.001]
[1753315536853,10.89267209,3622.7,3622.6,0.001]
[1753315537053,11.03027209,3622.7,3622.6,0.001]
[1753315537259,11.46287209,3622.7,3622.6,0.001]
[1753315537461,11.66950625,3622.7,3622.3,0.001]
[1753315537757,6.5678007,3622.4,3622.3,0.001]
[1753315537957,10.9308007,3622.4,3622.3,0.001]
[1753315538257,11.3634007,3622.4,3622.3,0.001]
[1753315538559,11.9552958,3622.4,3622.3,1e-08]
[1753315538771,2.76082935,3622.1,3622.0,0.001]
[1753315539067,2.76082935,3622.1,3621.1,0.1776]
[1753315539068,6.59441551,3621.2,3621.1,0.04]
[1753315539223,10.96241551,3621.2,3621.1,0.04]
[1753315539427,3.8329,3621.2,3621.1,0.04]
[1753315539625,3.8329,3621.2,3621.1,0.1776]
[1753315539626,7.367,3621.2,3621.1,0.1776]
[1753315541446,0.9271,3621.8,3621.2,0.55]
[1753315541638,3.0,3621.6,3621.2,3.31145046]
[1753315541834,3.0,3621.4,3621.2,3.31145046]
[1753315542034,3.7895,3621.8,3621.4,0.1376]
[1753315542249,4.366,3621.7,3621.4,0.1376]
[1753315542455,3.0,3621.5,3621.4,0.1376]
[1753315542649,3.7895,3621.8,3621.4,0.1376]
[1753315542850,4.364,3621.7,3621.4,0.1376]
[1753315543058,4.364,3621.6,3621.5,3.31228675]
[1753315543256,3.0,3621.6,3621.5,3.76128675]
[1753315543443,7.364,3621.6,3621.5,3.89888675]
[1753315543658,3.51892703,3622.3,3621.8,2.76104295]
[1753315543659,0.7582,3622.3,3621.8,2.76104295]
[1753315543889,0.7582,3622.3,3621.9,0.55]
[1753315543890,1.2271,3622.3,3621.9,0.55]
[1753315544091,3.0,3622.1,3621.9,0.55]
[1753315544262,3.0,3622.1,3621.8,0.55]
[1753315544457,3.0,3622.1,3622.0,0.1376]
[1753315547709,6.25732562,3622.1,3622.0,0.1376]
[1753315547883,0.7512,3622.0,3621.5,0.001]
[1753315548073,2.76121051,3621.6,3621.5,0.001]
[1753315548273,10.89900678,3621.6,3621.5,0.001]
[1753315548489,11.34031051,3621.6,3621.5,0.001]
[1753315554697,2.76151551,3621.2,3620.1,0.04]
[1753315554912,5.76227832,3620.2,3620.1,0.04]
[1753315555091,10.11627832,3620.2,3620.1,0.04]
[1753315555287,10.58517832,3620.2,3620.1,0.04]
[1753315555619,6.43769182,3620.2,3620.1,0.04]
[1753315555820,10.79269182,3620.2,3620.1,0.04]
[1753315556322,10.79269182,3620.2,3619.1,0.04]
[1753315556323,3.58874155,3619.2,3619.1,0.02760001]
[1753315556625,10.11904155,3619.2,3619.1,0.02760001]
[1753315556808,10.12104155,3619.2,3619.1,0.02760001]
[1753315558138,7.356,3619.2,3619.1,0.02760001]
[1753315558699,0.7971,3619.0,3617.1,0.04]
[1753315559041,3.0,3619.1,3618.2,1.2705]
[1753315559042,3.0,3618.8,3618.2,1.2705]
[1753315559217,3.0,3618.8,3618.3,0.56386271]
[1753315559218,4.366,3618.8,3618.3,0.56386271]
[1753315559543,5.76309315,3619.2,3618.3,0.949]
[1753315559725,5.76309315,3619.2,3618.2,0.8215]
[1753315559726,2.76332118,3618.9,3618.2,0.8215]
[1753315559913,5.76325359,3619.0,3618.3,0.4628589]
[1753315560242,0.4689,3619.5,3618.3,0.4628589]
[1753315560413,5.76298992,3619.3,3618.3,0.4628589]
[1753315560737,2.76355171,3618.6,3618.2,0.8215]
[1753315560956,4.372,3618.8,3618.3,0.449]
[1753315561314,2.76343864,3618.7,3618.4,0.449]
[1753315561507,2.76351375,3618.6,3618.5,0.55]
[1753315561838,3.0,3618.6,3618.3,0.55]
[1753315562048,3.0,3618.7,3618.5,0.55]
[1753315562254,2.7635002,3618.6,3618.5,0.55]
[1753315562463,3.0,3618.7,3618.5,0.55]
[1753315563009,3.0,3618.7,3618.6,0.999]
[1753315563210,7.13422222,3619.0,3618.6,0.55]
[1753315563415,3.0,3618.9,3618.6,0.55]
[1753315563635,5.76329751,3618.9,3618.6,0.999]
[1753315564351,5.76342332,3618.7,3618.6,0.55]
[1753315564518,3.0,3618.7,3618.6,0.55]
[1753315564719,2.76327631,3618.9,3618.6,1.322]
[1753315564923,3.0,3618.7,3618.6,1.771]
[1753315565331,2.76329357,3618.9,3618.6,1.771]
[1753315565533,2.76321428,3619.0,3618.6,1.771]
[1753315565838,3.0,3618.9,3618.7,0.999]
[1753315566231,3.0,3618.9,3618.8,0.6876]
[1753315566554,3.0,3618.9,3618.8,1.1366]
[1753315567124,3.0,3618.9,3618.8,0.6876]
[1753315567326,3.0,3619.0,3618.8,0.6876]
[1753315569393,4.362,3618.9,3618.8,0.6876]
[1753315569669,7.362,3618.9,3618.8,0.6876]
[1753315569868,10.1252706,3618.9,3618.8,0.6876]
[1753315571462,7.362,3618.9,3618.8,0.6876]
[1753315571834,3.0,3618.9,3618.8,0.6876]
[1753315572061,0.4691,3620.1,3618.9,0.55]
[1753315572062,4.357,3619.1,3618.9,0.55]
[1753315572231,4.357,3619.1,3619.0,0.9978]
[1753315572567,7.357,3619.1,3619.0,0.6876]
[1753315573664,7.357,3619.1,3619.0,0.6886]
[1753315574341,3.0,3619.1,3619.0,0.6886]
[1753315574668,7.357,3619.1,3619.0,0.6886]
[1753315574863,3.0,3619.1,3619.0,0.6886]
[1753315575072,7.353,3619.1,3619.0,1.1364]
[1753315575361,2.76296542,3619.3,3619.0,1.1364]
[1753315575362,3.0,3619.3,3619.1,1.341]
[1753315575566,2.76297904,3619.3,3619.1,1.341]
[1753315575733,2.76297904,3619.3,3619.2,0.1376]
[1753315575928,10.11497904,3619.3,3619.2,0.1376]
[1753315576333,7.352,3619.3,3619.2,0.1376]
[1753315576834,10.11496521,3619.3,3619.2,0.1376]
[1753315577672,2.7631179,3619.1,3619.0,0.001]
[1753315578053,7.35,3619.1,3619.0,0.001]
[1753315578345,0.9709,3619.6,3619.1,0.55]
[1753315578543,3.0,3619.4,3619.1,0.55]
[1753315578773,3.0,3619.2,3619.1,0.55]
[1753315579237,3.0,3619.2,3619.1,0.1376]
[1753315579439,7.349,3619.2,3619.1,0.1376]
[1753315580577,10.11204155,3619.2,3619.1,0.1376]
[1753315580758,10.10924155,3619.2,3619.1,0.1376]
[1753315581353,10.57834155,3619.2,3619.1,0.1376]
[1753315585609,7.3462,3619.2,3619.1,0.1376]
[1753315586200,10.10924155,3619.2,3619.1,0.1376]
[1753315586912,10.10924155,3619.2,3619.0,0.1386]
[1753315587264,2.7631179,3619.1,3619.0,0.1386]
[1753315587437,7.3462,3619.2,3619.0,0.1386]
[1753315587931,7.3462,3619.2,3619.1,0.6876]
[1753315590222,7.3462,3619.2,3619.1,1.1354]
[1753315590419,7.3462,3619.2,3619.1,3.8985179]
[1753315590626,4.349,3619.2,3619.1,3.8985179]
[1753315591240,4.349,3619.2,3619.1,1.1354]
[1753315591859,4.349,3619.2,3619.1,0.6876]
[1753315595148,4.349,3619.2,3619.1,1.1354]
[1753315595552,4.349,3619.2,3619.1,0.6876]
[1753315595916,0.002,3619.3,3619.2,0.55]
[1753315596115,7.349,3619.3,3619.2,0.9978]
[1753315596520,7.349,3619.3,3619.2,0.55]
[1753315597048,4.349,3619.3,3619.2,4.57844155]
[1753315597954,0.002,3619.3,3619.2,4.57844155]
[1753315598260,0.002,3619.3,3619.2,4.59228632]
[1753315598452,0.002,3619.3,3619.2,4.57844155]
[1753315599040,0.002,3619.3,3619.2,4.59228632]
[1753315599429,0.002,3619.3,3619.2,4.57844155]
[1753315600350,0.002,3619.3,3619.2,4.49228632]
[1753315600841,0.002,3619.3,3619.2,4.47844155]
[1753315601544,0.002,3619.3,3619.2,4.49228632]
[1753315603028,0.002,3620.1,3620.0,4.10833093]
[1753315603264,0.002,3620.1,3620.0,4.12216043]
[1753315603769,0.002,3620.1,3620.0,4.72596043]
[1753315604530,0.002,3620.1,3620.0,9.05713093]
[1753315605553,1e-08,3620.1,3620.0,9.05713093]
[1753315606772,1e-08,3620.1,3620.0,4.24593093]
[1753315606938,1e-08,3620.1,3620.0,4.72596043]
[1753315608457,1e-08,3620.1,3620.0,4.71213093]
[1753315609280,1e-08,3620.1,3620.0,4.72596043]
[1753315609471,1e-08,3620.1,3620.0,9.06996043]
[1753315609644,1e-08,3620.1,3620.0,9.05613093]
[1753315611194,1e-08,3620.1,3620.0,4.71213093]
[1753315611340,1e-08,3620.1,3620.0,9.05613093]
[1753315612683,1e-08,3620.1,3620.0,4.71213093]
[1753315612885,1e-08,3620.1,3620.0,9.05613093]
[1753315613055,1e-08,3620.1,3620.0,4.71213093]
[1753315613260,1e-08,3620.1,3620.0,9.05513093]
[1753315613475,1e-08,3620.1,3620.0,4.71213093]
[1753315613698,1e-08,3620.1,3620.0,9.05513093]
[1753315614007,1e-08,3620.1,3620.0,8.85513093]
[1753315614314,1e-08,3620.1,3620.0,3.25003093]
[1753315614470,1e-08,3620.1,3620.0,7.59303093]
[1753315614971,1e-08,3620.1,3620.0,3.25003093]
[1753315615175,1e-08,3620.1,3620.0,8.05923093]
[1753315616804,1e-08,3620.1,3620.0,8.89053093]
[1753315618894,0.002,3620.8,3620.7,3.31189687]
[1753315619209,0.002,3620.8,3620.7,7.66771302]
[1753315619521,0.002,3620.8,3620.7,8.25769687]
[1753315620304,0.002,3620.8,3620.7,7.79149687]
[1753315620508,0.783,3620.8,3620.7,0.6876]
[1753315620711,1.241,3620.8,3620.7,0.1376]
[1753315620887,7.00282059,3620.8,3620.7,0.1376]
[1753315621298,7.00282059,3620.8,3619.7,4.342]
[1753315621299,0.7614,3620.1,3619.7,4.342]
[1753315621519,0.7614,3620.1,3620.0,0.1376]
[1753315622218,1.2194,3620.1,3620.0,0.1376]
[1753315622420,1.2194,3620.1,3620.0,0.6876]
[1753315623000,1.2194,3620.1,3620.0,0.1376]
[1753315623488,1.2194,3620.1,3620.0,0.6876]
[1753315623689,1.2194,3620.1,3620.0,3.45003093]
[1753315624184,1.2194,3620.1,3620.0,0.6876]
[1753315624382,0.7709,3620.4,3620.0,0.6876]
[1753315624597,0.7709,3620.4,3620.2,3.3122176]
[1753315624801,0.7709,3620.7,3620.4,3.31209979]
[1753315625014,0.458,3620.6,3620.4,3.31209979]
[1753315625399,0.458,3620.6,3620.5,3.44964944]
[1753315625631,0.002,3620.8,3620.6,0.55]
[1753315625933,0.002,3620.8,3620.7,3.31189687]
[1753315626226,0.002,3620.8,3620.7,3.44949687]
[1753315632100,0.002,3620.8,3620.7,3.91891302]
[1753315632520,0.002,3620.8,3620.7,3.46331302]
[1753315633292,0.002,3620.8,3620.7,8.25891302]
[1753315633547,0.002,3620.8,3620.7,9.03339687]
[1753315634442,0.002,3621.6,3621.5,2.76128675]
[1753315634594,0.002,3621.6,3621.5,8.43958675]
[1753315634799,0.002,3621.6,3621.5,9.03278675]
[1753315635530,0.04,3621.9,3621.8,3.31105803]
[1753315635727,0.04,3621.9,3621.8,7.65105803]
[1753315635894,0.04,3621.9,3621.8,9.01895803]
[1753315637438,0.042,3622.9,3622.8,3.3102959]
[1753315637741,0.042,3622.9,3622.8,7.6502959]
[1753315637944,0.042,3622.9,3622.8,8.1058959]
[1753315638112,0.042,3622.9,3622.8,8.4379959]
[1753315638303,0.042,3622.9,3622.8,8.8935959]
[1753315639265,0.042,3622.9,3622.8,8.4379959]
[1753315639403,0.042,3622.9,3622.8,8.8935959]
[1753315640553,0.042,3622.9,3622.8,8.8925959]
[1753315640849,1e-08,3622.9,3622.8,8.8925959]
[1753315641740,0.002,3623.2,3623.1,4.13706734]
[1753315641941,0.002,3623.4,3623.1,4.13706734]
[1753315641942,1e-08,3623.4,3623.3,3.30991499]
[1753315642105,1e-08,3623.4,3623.3,7.6606816]
[1753315642301,1e-08,3623.4,3623.3,8.92951499]
[1753315642703,1e-08,3623.6,3623.5,2.75976266]
[1753315643039,0.002,3624.4,3623.8,3.30953419]
[1753315643239,0.002,3624.4,3623.9,4.11315804]
[1753315643445,1e-08,3624.0,3623.9,4.56875804]
[1753315643747,1e-08,3624.2,3624.1,3.30930575]
[1753315643946,1e-08,3624.4,3624.2,3.30922962]
[1753315644146,0.002,3624.7,3624.6,3.30892512]
[1753315644442,0.002,3624.7,3624.6,7.65866698]
[1753315644644,0.002,3624.7,3624.6,7.64492512]
[1753315644849,0.002,3624.7,3624.6,8.88942512]
[1753315647017,0.002,3624.7,3624.6,7.64392512]
[1753315647549,0.002,3624.7,3624.6,8.23712512]
[1753315649045,0.002,3624.7,3624.6,3.90212512]
[1753315649210,0.002,3624.7,3624.6,8.23712512]
[1753315650139,0.002,3624.7,3624.6,8.23612512]
[1753315650541,0.002,3624.7,3624.6,8.99842512]
[1753315650745,0.04,3624.9,3624.8,3.30877289]
[1753315650957,0.04,3624.9,3624.8,7.65651094]
[1753315651168,0.04,3624.9,3624.8,8.23597289]
[1753315652786,0.04,3624.9,3624.8,3.44637289]
[1753315652949,0.04,3624.9,3624.8,2.89637289]
[1753315653137,0.04,3624.9,3624.8,7.22937289]
[1753315653138,0.4816,3624.9,3624.8,7.22937289]
[1753315653340,0.4816,3624.9,3624.8,7.77937289]
[1753315653734,0.04,3624.9,3624.8,7.77937289]
[1753315653932,1e-08,3624.9,3624.8,12.02217289]
[1753315654144,0.002,3625.7,3625.0,3.30862068]
[1753315654374,1e-08,3625.1,3625.0,7.64162068]
[1753315654558,1e-08,3625.1,3625.0,7.77922068]
[1753315654740,1e-08,3625.1,3625.0,8.23482068]
[1753315655448,1e-08,3625.1,3625.0,11.23482068]
[1753315655647,1e-08,3625.1,3625.0,12.02862068]
[1753315658081,0.002,3625.7,3625.6,3.30816416]
[1753315658371,0.002,3625.7,3625.6,7.653887]
[1753315658572,1e-08,3625.7,3625.6,9.03916416]
[1753315658775,1e-08,3625.9,3625.8,3.30801202]
[1753315659074,1e-08,3625.9,3625.8,10.79033105]
[1753315659271,0.04,3626.9,3626.8,3.30725157]
[1753315659475,0.04,3626.9,3626.8,7.65195159]
[1753315659676,0.04,3626.9,3626.8,7.77585157]
[1753315661700,0.04,3626.9,3626.8,8.22865157]
[1753315662048,0.4676,3627.8,3627.7,3.30656752]
[1753315662049,0.8167,3627.8,3627.7,3.30656752]
[1753315662250,0.04,3627.9,3627.8,3.30649153]
[1753315662769,0.5076,3627.9,3627.8,3.30649153]
[1753315662983,0.5076,3627.9,3627.7,0.1376]
[1753315663148,0.5076,3627.9,3627.8,4.88]
[1753315663345,1.2891,3627.9,3627.8,0.55]
[1753315663549,0.5076,3627.9,3627.7,0.1376]
[1753315663760,4.00559153,3627.8,3627.7,0.6876]
[1753315663959,1.2491,3627.8,3627.7,0.6876]
[1753315664404,4.00559153,3627.8,3627.7,0.6876]
[1753315665086,4.2491,3627.8,3627.7,5.0166]
[1753315666063,1.2491,3627.8,3627.7,7.77316752]
[1753315667028,0.04,3627.9,3627.8,3.30649153]
[1753315667205,0.04,3627.9,3627.8,3.32017255]
[1753315667418,0.04,3627.9,3627.8,3.30649153]
[1753315668021,0.04,3627.9,3627.8,3.32017255]
[1753315668398,0.002,3628.2,3627.8,3.32017255]
[1753315668585,1e-08,3628.3,3628.2,3.30618764]
[1753315668787,1e-08,3628.3,3628.2,8.22458764]
[1753315669395,1e-08,3628.3,3628.2,8.99068764]
[1753315671802,1e-08,3628.3,3628.2,11.99068764]
[1753315672003,1e-08,3628.3,3628.2,11.98968764]
[1753315674990,1e-08,3628.3,3628.2,11.98868764]
[1753315675194,1e-08,3628.3,3628.2,7.66268764]
[1753315675432,1e-08,3628.3,3628.2,11.98868764]
[1753315677732,0.04,3629.9,3629.8,2.75497272]
[1753315677916,0.7779,3630.3,3628.5,0.01364794]
[1753315678119,0.7779,3630.2,3629.7,2.75500008]
[1753315678315,0.4676,3630.1,3629.9,0.55]
[1753315678516,0.7779,3630.0,3627.7,0.4528]
[1753315678813,3.7706,3629.7,3627.7,0.4528]
[1753315679030,0.7706,3629.7,3629.1,2.75544869]
[1753315679338,0.7706,3629.5,3629.2,4.327]
[1753315679648,0.4676,3629.4,3629.2,4.327]
[1753315679850,0.7706,3629.5,3629.3,4.325]
[1753315680156,3.7706,3629.5,3629.0,2.75555879]
[1753315680307,0.7706,3629.5,3629.2,0.55]
[1753315680507,0.4676,3629.4,3629.2,0.55]
[1753315680920,0.4676,3629.3,3629.2,0.55]
[1753315681515,0.4676,3629.3,3629.2,4.875]
[1753315681712,0.7727,3629.1,3628.1,0.04]
[1753315681911,0.7727,3628.6,3628.2,4.328]
[1753315682234,0.4676,3628.5,3628.1,0.04]
[1753315682427,0.7556,3628.4,3628.1,2.7962507]
[1753315682625,0.4676,3628.3,3628.2,4.328]
[1753315683017,0.4676,3628.3,3628.2,7.08418764]
[1753315683217,0.4676,3628.3,3628.2,7.63418764]
[1753315683420,0.4676,3628.3,3628.2,4.878]
[1753315683737,0.4676,3628.3,3628.2,0.55]
[1753315683936,0.4676,3628.3,3628.2,4.877]
[1753315684850,0.7556,3628.4,3628.3,0.55]
[1753315685312,0.7556,3628.4,3628.3,3.30611167]
[1753315685714,0.8022,3629.0,3628.9,0.55]
[1753315685928,0.8022,3629.0,3628.9,3.30565598]
[1753315687488,0.8022,3629.0,3628.9,4.325]
[1753315687760,0.8022,3629.0,3628.9,4.875]
[1753315687919,0.8022,3629.0,3628.9,5.0126]
[1753315688115,1.2698,3629.0,3628.9,0.6876]
[1753315688517,4.05982479,3629.0,3628.9,0.1376]
[1753315688751,2.75607902,3628.4,3628.1,0.04]
[1753315688918,0.7865,3628.3,3628.1,0.04]
[1753315689160,3.59523998,3628.2,3628.1,0.04]
[1753315689362,6.99738764,3628.2,3628.1,0.1776]
[1753315689530,11.32238764,3628.2,3628.1,0.04]
[1753315689921,6.5649475,3627.2,3627.1,0.1776]
[1753315690325,7.0015475,3627.2,3627.1,0.1776]
[1753315691262,7.0015475,3627.2,3627.1,0.04]
[1753315693151,3.55629953,3627.0,3626.9,0.001]
[1753315693336,6.59076327,3627.0,3626.9,0.001]
[1753315693542,6.99289953,3627.0,3626.9,0.001]
[1753315694544,11.31789953,3627.0,3626.9,0.001]
[1753315694864,11.45549953,3627.0,3626.9,0.001]
[1753315702580,5.1242,3627.0,3626.9,0.001]
[1753315702944,10.88129953,3627.0,3626.9,0.001]
[1753315703142,11.31789953,3627.0,3626.9,0.001]
[1753315704187,8.5608,3627.0,3626.9,0.001]
[1753315705987,8.1242,3627.0,3626.9,0.001]
[1753315706489,8.1262,3627.0,3626.9,0.001]
[1753315706985,3.7992,3627.0,3626.9,0.001]
[1753315707164,4.327,3627.0,3626.9,0.001]
[1753315707364,3.72139478,3627.7,3627.1,2.75702007]
[1753315707568,3.72139478,3627.7,3626.9,3.21907509]
[1753315707569,3.0,3627.5,3626.9,3.21907509]
[1753315707762,3.0,3627.5,3627.2,0.1376]
[1753315707967,3.0,3627.5,3627.2,2.89451954]
[1753315708296,3.0,3627.3,3627.2,2.89453646]
[1753315708592,3.0,3627.3,3627.2,0.1376]
[1753315710487,4.327,3627.4,3627.2,0.1376]
[1753315711063,4.327,3627.4,3627.2,2.89454478]
[1753315711280,4.327,3627.4,3627.2,0.1376]
[1753315712584,5.7568715,3627.3,3627.2,0.1376]
[1753315712784,6.1934715,3627.3,3627.2,0.1376]
[1753315712987,3.0,3627.3,3627.2,0.1376]
[1753315714091,3.0,3627.3,3627.2,0.5985]
[1753315714463,3.0,3627.3,3627.2,0.1376]
[1753315717397,5.79133239,3627.3,3627.2,0.1376]
[1753315717702,6.1934715,3627.3,3627.2,0.1376]
[1753315717898,6.9861715,3627.3,3627.2,0.1376]
[1753315719704,6.5495715,3627.3,3627.2,0.1376]
[1753315720579,3.7927,3627.3,3627.2,0.1376]
[1753315721305,6.58403239,3627.3,3627.2,0.1376]
[1753315721602,6.5495715,3627.3,3627.2,0.1376]
[1753315723208,3.7927,3627.3,3627.2,0.1376]
[1753315723700,3.82716089,3627.3,3627.2,0.1376]
[1753315724271,6.58403239,3627.3,3627.2,0.1376]
[1753315724505,6.5495715,3627.3,3627.2,0.1376]
[1753315726780,6.53809953,3627.0,3626.9,0.001]
[1753315726984,10.86309953,3627.0,3626.9,0.001]
[1753315727481,11.33789953,3627.0,3626.9,0.001]
[1753315728224,10.86309953,3627.0,3626.9,0.001]
[1753315729224,7.325,3627.0,3626.9,0.4352]
[1753315729525,7.325,3627.0,3626.9,0.5728]
[1753315730582,3.0,3627.0,3626.9,0.5728]
[1753315730777,3.0,3627.0,3626.9,2.89577554]
[1753315730986,7.324,3627.0,3626.9,3.32997554]
[1753315731378,0.002,3627.3,3627.2,2.7569475]
[1753315731584,7.326,3627.3,3627.2,2.7569475]
[1753315731780,3.002,3627.3,3627.2,0.1376]
[1753315734118,2.75704985,3627.1,3626.9,0.001]
[1753315734316,7.35846374,3627.0,3626.9,0.001]
[1753315734518,10.55589953,3627.0,3626.9,0.001]
[1753315734922,11.32289953,3627.0,3626.9,0.001]
[1753315735220,11.46049953,3627.0,3626.9,0.001]
[1753315741934,3.9046,3627.0,3626.9,0.001]
[1753315742139,4.323,3627.0,3626.9,0.4352]
[1753315742433,0.002,3627.3,3626.9,0.4352]
[1753315742632,4.323,3627.2,3626.9,0.5728]
[1753315742848,4.323,3627.2,3627.0,0.4342]
[1753315742997,4.323,3627.2,3627.1,0.1376]
[1753315743200,0.002,3627.3,3627.2,4.0662475]
[1753315743399,0.002,3627.3,3627.2,4.5004475]
[1753315746117,0.002,3627.3,3627.2,1.7435]
[1753315746317,0.002,3627.3,3627.2,4.5004475]
[1753315753631,0.002,3627.3,3627.2,4.0662475]
[1753315753939,0.002,3627.3,3627.2,4.5181475]
[1753315754443,0.002,3627.3,3627.2,3.7588475]
[1753315754846,0.002,3627.3,3627.2,1.0019]
[1753315755212,0.002,3627.3,3627.2,3.7588475]
[1753315757159,0.002,3627.3,3627.2,3.77253992]
[1753315757370,0.002,3627.3,3627.2,3.7588475]
[1753315757652,0.002,3627.3,3627.2,4.5144475]
[1753315758913,0.002,3627.3,3627.2,8.8344475]
[1753315762162,0.002,3627.3,3627.2,8.0778475]
[1753315762671,0.002,3627.3,3627.2,8.8660475]
[1753315763166,0.002,3628.1,3628.0,3.30633958]
[1753315763575,0.002,3628.1,3628.0,3.75823958]
[1753315763885,0.002,3628.1,3628.0,3.89583958]
[1753315764576,0.002,3628.1,3628.0,3.9095168]
[1753315765162,0.002,3628.1,3628.0,3.89583958]
[1753315765394,0.002,3628.8,3628.7,2.75580786]
[1753315765549,0.002,3628.8,3628.7,3.30580786]
[1753315765748,0.002,3628.8,3628.7,3.89530786]
[1753315768377,0.002,3628.8,3628.7,0.1376]
[1753315768544,1.25214664,3628.8,3628.7,0.1376]
[1753315768759,4.25214664,3628.8,3628.7,0.1376]
[1753315768976,7.00787856,3628.8,3628.7,0.1376]
[1753315769152,3.0,3628.7,3627.9,2.75641555]
[1753315769344,0.48354854,3628.6,3628.4,0.1376]
[1753315769658,2.75614573,3628.3,3628.2,0.1376]
[1753315769984,3.5225668,3628.5,3628.2,0.1376]
[1753315769985,3.0,3628.4,3628.2,0.1376]
[1753315770186,0.7666,3628.5,3628.2,0.1376]
[1753315770340,5.96921167,3628.3,3628.2,0.1376]
[1753315771284,3.2131,3628.3,3628.2,0.1376]
[1753315771488,3.0,3628.3,3628.2,0.1376]
[1753315771893,5.96921167,3628.3,3628.2,0.1376]
[1753315772194,6.72331167,3628.3,3628.2,0.1376]
[1753315773377,5.7562336,3628.2,3628.0,0.1376]
[1753315773581,0.03445329,3628.1,3628.0,0.1376]
[1753315773891,5.79071689,3628.1,3628.0,0.1376]
[1753315774192,3.0,3628.0,3627.1,2.75797455]
[1753315774394,3.0,3627.8,3627.6,0.1376]
[1753315774771,2.75651304,3627.8,3627.6,0.1376]
[1753315775291,2.96961304,3627.8,3627.6,0.1376]
[1753315775594,5.75636118,3628.0,3627.6,0.1376]
[1753315775896,0.7541,3628.1,3628.0,2.75633958]
[1753315776093,3.0,3628.2,3627.9,0.1376]
[1753315776277,2.75640376,3628.0,3627.3,3.3068715]
[1753315776495,0.82345519,3627.9,3627.3,0.55]
[1753315776867,6.57987074,3627.9,3627.8,0.1376]
[1753315777078,6.54541555,3627.9,3627.8,0.1376]
[1753315777395,6.99451555,3627.9,3627.8,0.1376]
[1753315777628,3.789,3627.9,3627.8,0.1376]
[1753315778164,5.0964,3628.3,3627.8,0.1376]
[1753315778479,3.0,3628.2,3627.8,0.1376]
[1753315779421,5.75619152,3628.2,3627.8,0.1376]
[1753315779595,3.0,3628.0,3627.8,0.1376]
[1753315779796,4.316,3627.9,3627.8,0.1376]
[1753315780304,4.35045519,3627.9,3627.8,0.1376]
[1753315780508,10.07241555,3627.9,3627.8,0.1376]
[1753315781118,2.75661026,3627.7,3627.1,0.551]
[1753315781319,2.79110384,3627.6,3627.1,0.551]
[1753315781628,4.315,3627.5,3627.4,0.1376]
[1753315782910,4.315,3627.5,3627.4,2.8943955]
[1753315783105,4.315,3627.5,3627.4,4.7133955]
[1753315783421,3.0,3627.8,3627.5,3.30665926]
[1753315783617,3.0,3627.8,3627.6,0.4538]
[1753315783820,3.0,3627.8,3627.7,0.1376]
[1753315785587,3.0,3627.8,3627.7,2.89416752]